fUSD/lending_fUSD_20260503
["ID","MTS","AMOUNT","RATE_DAILY","PERIOD"]
[421475775,1777740656000,-167.6573539,0.00032492,2]
[421475779,1777740656000,-209.091798,0.00032492,7]
[421475777,1777740656000,-209.091798,0.00032492,7]
[421475768,1777740656000,-500.0,0.00032492,2]
[421475771,1777740656000,-221.6106529,0.00032492,2]
[421475772,1777740656000,-500.0,0.00032492,2]
[421475774,1777740656000,-500.0,0.00032492,2]
[421475776,1777740656000,-209.091798,0.00032492,7]
[421475781,1777740656000,-346.911513,0.00032492,7]
[421475780,1777740656000,-346.911513,0.00032492,7]
[421475782,1777740656000,-346.911513,0.00032492,7]
[421475809,1777740656000,-500.0,0.00032493,2]
[421475755,1777740656000,-159.0,0.00032492,5]
[421475811,1777740656000,-500.0,0.00032493,2]
[421475844,1777740656000,-500.0,0.00032493,2]
[421475847,1777740656000,-500.0,0.00032493,2]
[421475849,1777740656000,-661.95,0.00032493,2]
[421475851,1777740656000,-500.0,0.00032493,2]
[421475850,1777740656000,-500.0,0.00032493,2]
[421475852,1777740656000,-500.0,0.00032493,2]
[421475848,1777740656000,-442.52139067,0.00032493,2]
[421475854,1777740656000,-500.0,0.00032493,2]
[421475856,1777740656000,-500.0,0.00032493,2]
[421475855,1777740656000,-500.0,0.00032493,2]
[421475857,1777740656000,-500.0,0.00032493,2]
[421475859,1777740656000,-500.0,0.00032493,2]
[421475853,1777740656000,-500.0,0.00032493,2]
[421475861,1777740656000,-500.0,0.00032493,2]
[421475864,1777740656000,-500.0,0.00032493,2]
[421475863,1777740656000,-729.45,0.00032493,2]
[421475860,1777740656000,-558.92,0.00032493,2]
[421475862,1777740656000,-608.3,0.00032493,2]
[421475866,1777740656000,-500.0,0.00032493,2]
[421475865,1777740656000,-500.0,0.00032493,2]
[421475867,1777740656000,-778.94,0.00032493,2]
[421475868,1777740656000,-500.0,0.00032493,2]
[421475869,1777740656000,-554.24,0.00032493,2]
[421475871,1777740656000,-500.0,0.00032493,2]
[421475872,1777740656000,-500.0,0.00032493,2]
[421475870,1777740656000,-171.38433973,0.00032493,2]
[421475858,1777740656000,-500.0,0.00032493,2]
[421475845,1777740656000,-500.0,0.00032493,2]
[421475873,1777740656000,-500.0,0.00032493,2]
[421475846,1777740656000,-500.0,0.00032493,2]
[421475842,1777740656000,-500.0,0.00032493,2]
[421475816,1777740656000,-500.0,0.00032493,2]
[421475818,1777740656000,-500.0,0.00032493,2]
[421475826,1777740656000,-533.47,0.00032493,2]
[421475821,1777740656000,-1152.06,0.00032493,2]
[421475820,1777740656000,-500.0,0.00032493,2]
[421475819,1777740656000,-500.0,0.00032493,2]
[421475817,1777740656000,-500.0,0.00032493,2]
[421475823,1777740656000,-500.0,0.00032493,2]
[421475825,1777740656000,-500.0,0.00032493,2]
[421475827,1777740656000,-500.0,0.00032493,2]
[421475824,1777740656000,-500.0,0.00032493,2]
[421475822,1777740656000,-500.0,0.00032493,2]
[421475828,1777740656000,-500.0,0.00032493,2]
[421475814,1777740656000,-500.0,0.00032493,2]
[421475840,1777740656000,-751.13,0.00032493,2]
[421475830,1777740656000,-595.24,0.00032493,2]
[421475843,1777740656000,-500.0,0.00032493,2]
[421475834,1777740656000,-500.0,0.00032493,2]
[421475836,1777740656000,-653.64,0.00032493,2]
[421475835,1777740656000,-500.0,0.00032493,2]
[421475832,1777740656000,-500.0,0.00032493,2]
[421475838,1777740656000,-500.0,0.00032493,2]
[421475839,1777740656000,-500.0,0.00032493,2]
[421475841,1777740656000,-500.0,0.00032493,2]
[421475833,1777740656000,-500.0,0.00032493,2]
[421475831,1777740656000,-500.0,0.00032493,2]
[421475829,1777740656000,-504.21,0.00032493,2]
[421475837,1777740656000,-500.0,0.00032493,2]
[421475911,1777740657000,-500.0,0.00032493,2]
[421475913,1777740657000,-563.44,0.00032493,2]
[421475924,1777740657000,-500.0,0.00032493,2]
[421475914,1777740657000,-500.0,0.00032493,2]
[421475905,1777740657000,-500.0,0.00032493,2]
[421475910,1777740657000,-1049.35,0.00032493,2]
[421475909,1777740657000,-500.0,0.00032493,2]
[421475907,1777740657000,-714.19,0.00032493,2]
[421475904,1777740657000,-1160.62,0.00032493,2]
[421475908,1777740657000,-500.0,0.00032493,2]
[421475901,1777740657000,-500.0,0.00032493,2]
[421475919,1777740657000,-500.0,0.00032493,2]
[421475922,1777740657000,-500.0,0.00032493,2]
[421475917,1777740657000,-500.0,0.00032493,2]
[421475916,1777740657000,-500.0,0.00032493,2]
[421475918,1777740657000,-500.0,0.00032493,2]
[421475921,1777740657000,-500.0,0.00032493,2]
[421475912,1777740657000,-500.0,0.00032493,2]
[421475920,1777740657000,-606.54,0.00032493,2]
[421475923,1777740657000,-560.36,0.00032493,2]
[421475925,1777740657000,-706.67,0.00032493,2]
[421475927,1777740657000,-500.0,0.00032493,2]
[421475926,1777740657000,-507.81,0.00032493,2]
[421475928,1777740657000,-500.0,0.00032493,2]
[421475934,1777740657000,-542.32,0.00032493,2]
[421475935,1777740657000,-500.0,0.00032493,2]
[421475915,1777740657000,-682.27,0.00032493,2]
[421475906,1777740657000,-500.0,0.00032493,2]
[421475894,1777740657000,-500.0,0.00032493,2]
[421475903,1777740657000,-290.29457064,0.00032493,2]
[421475929,1777740657000,-748.06,0.00032493,2]
[421475876,1777740657000,-500.0,0.00032493,2]
[421475875,1777740657000,-500.0,0.00032493,2]
[421475874,1777740657000,-1945.3,0.00032493,2]
[421475879,1777740657000,-638.93,0.00032493,2]
[421475886,1777740657000,-500.0,0.00032493,2]
[421475882,1777740657000,-500.0,0.00032493,2]
[421475877,1777740657000,-500.0,0.00032493,2]
[421475881,1777740657000,-667.69,0.00032493,2]
[421475878,1777740657000,-503.61,0.00032493,2]
[421475884,1777740657000,-500.0,0.00032493,2]
[421475880,1777740657000,-500.0,0.00032493,2]
[421475902,1777740657000,-500.0,0.00032493,2]
[421475888,1777740657000,-500.0,0.00032493,2]
[421475885,1777740657000,-500.0,0.00032493,2]
[421475890,1777740657000,-500.0,0.00032493,2]
[421475889,1777740657000,-500.0,0.00032493,2]
[421475891,1777740657000,-500.0,0.00032493,2]
[421475892,1777740657000,-500.0,0.00032493,2]
[421475895,1777740657000,-500.0,0.00032493,2]
[421475896,1777740657000,-500.0,0.00032493,2]
[421475899,1777740657000,-500.0,0.00032493,2]
[421475893,1777740657000,-500.0,0.00032493,2]
[421475897,1777740657000,-500.0,0.00032493,2]
[421475898,1777740657000,-500.0,0.00032493,2]
[421475900,1777740657000,-531.92,0.00032493,2]
[421475883,1777740657000,-500.0,0.00032493,2]
[421475887,1777740657000,-500.0,0.00032493,2]
[421475930,1777740657000,-500.0,0.00032493,2]
[421475931,1777740657000,-500.0,0.00032493,2]
[421475964,1777740657000,-500.0,0.00032493,2]
[421475963,1777740657000,-500.0,0.00032493,2]
[421475966,1777740657000,-500.0,0.00032493,2]
[421475967,1777740657000,-500.0,0.00032493,2]
[421475971,1777740657000,-500.0,0.00032493,2]
[421475981,1777740657000,-807.32,0.00032493,2]
[421475982,1777740657000,-500.0,0.00032493,2]
[421475970,1777740657000,-500.0,0.00032493,2]
[421475973,1777740657000,-500.0,0.00032493,2]
[421475975,1777740657000,-637.70908679,0.00032493,2]
[421475972,1777740657000,-779.5,0.00032493,2]
[421475974,1777740657000,-561.34,0.00032493,2]
[421475965,1777740657000,-500.0,0.00032493,2]
[421475977,1777740657000,-529.42,0.00032493,2]
[421475976,1777740657000,-500.0,0.00032493,2]
[421475980,1777740657000,-500.0,0.00032493,2]
[421475979,1777740657000,-500.0,0.00032493,2]
[421475984,1777740657000,-500.0,0.00032493,2]
[421475987,1777740657000,-1667.09,0.00032493,2]
[421475985,1777740657000,-500.0,0.00032493,2]
[421475990,1777740657000,-1060.23,0.00032493,2]
[421475986,1777740657000,-755.44,0.00032493,2]
[421475983,1777740657000,-500.0,0.00032493,2]
[421475988,1777740657000,-500.0,0.00032493,2]
[421475991,1777740657000,-500.0,0.00032493,2]
[421475933,1777740657000,-500.0,0.00032493,2]
[421475978,1777740657000,-500.0,0.00032493,2]
[421475968,1777740657000,-572.23,0.00032493,2]
[421475989,1777740657000,-500.0,0.00032493,2]
[421475962,1777740657000,-500.0,0.00032493,2]
[421475969,1777740657000,-500.0,0.00032493,2]
[421475937,1777740657000,-500.0,0.00032493,2]
[421475948,1777740657000,-500.0,0.00032493,2]
[421475947,1777740657000,-500.0,0.00032493,2]
[421475938,1777740657000,-500.0,0.00032493,2]
[421475936,1777740657000,-500.0,0.00032493,2]
[421475944,1777740657000,-500.0,0.00032493,2]
[421475939,1777740657000,-500.0,0.00032493,2]
[421475946,1777740657000,-500.0,0.00032493,2]
[421475941,1777740657000,-1058.89,0.00032493,2]
[421475940,1777740657000,-645.2502526,0.00032493,2]
[421475943,1777740657000,-500.0,0.00032493,2]
[421475942,1777740657000,-500.0,0.00032493,2]
[421475932,1777740657000,-565.92,0.00032493,2]
[421475960,1777740657000,-500.0,0.00032493,2]
[421475961,1777740657000,-500.0,0.00032493,2]
[421475954,1777740657000,-500.0,0.00032493,2]
[421475956,1777740657000,-765.21,0.00032493,2]
[421475955,1777740657000,-500.0,0.00032493,2]
[421475945,1777740657000,-618.93,0.00032493,2]
[421475958,1777740657000,-500.0,0.00032493,2]
[421475959,1777740657000,-500.0,0.00032493,2]
[421475949,1777740657000,-500.0,0.00032493,2]
[421475953,1777740657000,-517.58,0.00032493,2]
[421475951,1777740657000,-3131.23,0.00032493,2]
[421475952,1777740657000,-500.0,0.00032493,2]
[421475950,1777740657000,-500.0,0.00032493,2]
[421475957,1777740657000,-500.0,0.00032493,2]
[421476033,1777740658000,-508.38,0.00032493,2]
[421476030,1777740658000,-734.68,0.00032493,2]
[421476028,1777740658000,-500.0,0.00032493,2]
[421476027,1777740658000,-500.0,0.00032493,2]
[421476024,1777740658000,-437.66546788,0.00032493,2]
[421476023,1777740658000,-500.0,0.00032493,2]
[421476035,1777740658000,-500.0,0.00032493,2]
[421476025,1777740658000,-500.0,0.00032493,2]
[421476034,1777740658000,-500.0,0.00032493,2]
[421476036,1777740658000,-500.0,0.00032493,2]
[421476026,1777740658000,-500.0,0.00032493,2]
[421476031,1777740658000,-1086.79,0.00032493,2]
[421476041,1777740658000,-422.93460952,0.00032493,2]
[421476032,1777740658000,-501.01,0.00032493,2]
[421476037,1777740658000,-842.36,0.00032493,2]
[421476038,1777740658000,-561.50325551,0.00032493,2]
[421476040,1777740658000,-500.0,0.00032493,2]
[421476043,1777740658000,-500.0,0.00032493,2]
[421476039,1777740658000,-500.0,0.00032493,2]
[421476045,1777740658000,-753.25,0.00032493,2]
[421476046,1777740658000,-500.0,0.00032493,2]
[421476042,1777740658000,-1784.19,0.00032493,2]
[421476044,1777740658000,-549.91,0.00032493,2]
[421476048,1777740658000,-500.0,0.00032493,2]
[421476016,1777740658000,-500.0,0.00032493,2]
[421476029,1777740658000,-500.0,0.00032493,2]
[421476015,1777740658000,-500.0,0.00032493,2]
[421476002,1777740658000,-500.0,0.00032493,2]
[421476020,1777740658000,-1173.7,0.00032493,2]
[421475994,1777740658000,-500.0,0.00032493,2]
[421475995,1777740658000,-500.0,0.00032493,2]
[421475992,1777740658000,-977.68,0.00032493,2]
[421475993,1777740658000,-500.0,0.00032493,2]
[421475997,1777740658000,-500.0,0.00032493,2]
[421475996,1777740658000,-577.58,0.00032493,2]
[421476006,1777740658000,-308.56320455,0.00032493,2]
[421475999,1777740658000,-445.80479614,0.00032493,2]
[421476007,1777740658000,-500.0,0.00032493,2]
[421475998,1777740658000,-500.0,0.00032493,2]
[421476008,1777740658000,-797.42,0.00032493,2]
[421476001,1777740658000,-604.96,0.00032493,2]
[421476022,1777740658000,-500.0,0.00032493,2]
[421476004,1777740658000,-537.53239676,0.00032493,2]
[421476005,1777740658000,-860.23,0.00032493,2]
[421476003,1777740658000,-500.0,0.00032493,2]
[421476010,1777740658000,-500.0,0.00032493,2]
[421476009,1777740658000,-624.68,0.00032493,2]
[421476012,1777740658000,-500.0,0.00032493,2]
[421476014,1777740658000,-329.55612958,0.00032493,2]
[421476011,1777740658000,-500.0,0.00032493,2]
[421476013,1777740658000,-500.0,0.00032493,2]
[421476021,1777740658000,-2456.95,0.00032493,2]
[421476018,1777740658000,-500.0,0.00032493,2]
[421476019,1777740658000,-500.0,0.00032493,2]
[421476017,1777740658000,-523.46,0.00032493,2]
[421476000,1777740658000,-500.0,0.00032493,2]
[421476049,1777740658000,-4974.81,0.00032493,2]
[421476047,1777740658000,-500.0,0.00032493,2]
[421476051,1777740658000,-500.0,0.00032493,2]
[421476086,1777740658000,-500.0,0.00032493,2]
[421476082,1777740658000,-500.0,0.00032493,2]
[421476085,1777740658000,-500.0,0.00032493,2]
[421476084,1777740658000,-785.63,0.00032493,2]
[421476088,1777740658000,-500.0,0.00032493,2]
[421476087,1777740658000,-500.0,0.00032493,2]
[421476090,1777740658000,-742.17,0.00032493,2]
[421476089,1777740658000,-445.52653222,0.00032493,2]
[421476092,1777740658000,-500.0,0.00032493,2]
[421476101,1777740658000,-500.0,0.00032493,2]
[421476091,1777740658000,-1058.93,0.00032493,2]
[421476095,1777740658000,-500.0,0.00032493,2]
[421476083,1777740658000,-500.0,0.00032493,2]
[421476093,1777740658000,-500.0,0.00032493,2]
[421476098,1777740658000,-500.0,0.00032493,2]
[421476096,1777740658000,-500.0,0.00032493,2]
[421476099,1777740658000,-500.0,0.00032493,2]
[421476100,1777740658000,-500.0,0.00032493,2]
[421476097,1777740658000,-500.0,0.00032493,2]
[421476103,1777740658000,-500.0,0.00032493,2]
[421476104,1777740658000,-500.0,0.00032493,2]
[421476105,1777740658000,-500.0,0.00032493,2]
[421476106,1777740658000,-602.56,0.00032493,2]
[421476108,1777740658000,-500.0,0.00032493,2]
[421476107,1777740658000,-616.23718957,0.00032493,2]
[421476053,1777740658000,-500.0,0.00032493,2]
[421476094,1777740658000,-353.36061814,0.00032493,2]
[421476080,1777740658000,-500.0,0.00032493,2]
[421476102,1777740658000,-420.1341989,0.00032493,2]
[421476078,1777740658000,-500.0,0.00032493,2]
[421476061,1777740658000,-500.0,0.00032493,2]
[421476079,1777740658000,-500.0,0.00032493,2]
[421476050,1777740658000,-500.0,0.00032493,2]
[421476052,1777740658000,-500.0,0.00032493,2]
[421476055,1777740658000,-500.0,0.00032493,2]
[421476057,1777740658000,-848.48,0.00032493,2]
[421476054,1777740658000,-500.0,0.00032493,2]
[421476058,1777740658000,-500.0,0.00032493,2]
[421476056,1777740658000,-500.0,0.00032493,2]
[421476060,1777740658000,-500.0,0.00032493,2]
[421476062,1777740658000,-500.0,0.00032493,2]
[421476071,1777740658000,-533.87,0.00032493,2]
[421476073,1777740658000,-842.66,0.00032493,2]
[421476067,1777740658000,-890.68,0.00032493,2]
[421476059,1777740658000,-500.0,0.00032493,2]
[421476081,1777740658000,-500.0,0.00032493,2]
[421476077,1777740658000,-500.0,0.00032493,2]
[421476065,1777740658000,-500.0,0.00032493,2]
[421476076,1777740658000,-500.0,0.00032493,2]
[421476075,1777740658000,-500.0,0.00032493,2]
[421476070,1777740658000,-500.0,0.00032493,2]
[421476063,1777740658000,-728.25,0.00032493,2]
[421476069,1777740658000,-500.0,0.00032493,2]
[421476066,1777740658000,-302.36292282,0.00032493,2]
[421476064,1777740658000,-500.0,0.00032493,2]
[421476072,1777740658000,-500.0,0.00032493,2]
[421476068,1777740658000,-862.29,0.00032493,2]
[421476074,1777740658000,-2676.11,0.00032493,2]
[421476149,1777740659000,-500.0,0.00032493,2]
[421476148,1777740659000,-500.0,0.00032493,2]
[421476147,1777740659000,-752.6,0.00032493,2]
[421476141,1777740659000,-500.0,0.00032493,2]
[421476146,1777740659000,-563.67,0.00032493,2]
[421476142,1777740659000,-500.0,0.00032493,2]
[421476150,1777740659000,-550.63,0.00032493,2]
[421476144,1777740659000,-691.06,0.00032493,2]
[421476151,1777740659000,-500.0,0.00032493,2]
[421476152,1777740659000,-368.22508213,0.00032493,2]
[421476153,1777740659000,-500.0,0.00032493,2]
[421476145,1777740659000,-9212.5,0.00032493,2]
[421476154,1777740659000,-500.0,0.00032493,2]
[421476178,1777740659000,-500.0,0.00032493,2]
[421476157,1777740659000,-500.0,0.00032493,2]
[421476156,1777740659000,-500.0,0.00032493,2]
[421476158,1777740659000,-596.49,0.00032493,2]
[421476160,1777740659000,-568.62,0.00032493,2]
[421476161,1777740659000,-500.0,0.00032493,2]
[421476159,1777740659000,-746.13,0.00032493,2]
[421476164,1777740659000,-500.0,0.00032493,2]
[421476165,1777740659000,-735.07,0.00032493,2]
[421476162,1777740659000,-25647.26,0.00032493,2]
[421476163,1777740659000,-501.07,0.00032493,2]
[421476167,1777740659000,-500.0,0.00032493,2]
[421476177,1777740659000,-500.0,0.00032493,2]
[421476143,1777740659000,-517.88,0.00032493,2]
[421476155,1777740659000,-533.32305598,0.00032493,2]
[421476140,1777740659000,-500.0,0.00032493,2]
[421476110,1777740659000,-556.57,0.00032493,2]
[421476137,1777740659000,-500.0,0.00032493,2]
[421476113,1777740659000,-568.44,0.00032493,2]
[421476173,1777740659000,-3472.2,0.00032493,2]
[421476111,1777740659000,-1045.22,0.00032493,2]
[421476109,1777740659000,-517.11,0.00032493,2]
[421476115,1777740659000,-4289.29,0.00032493,2]
[421476123,1777740659000,-500.0,0.00032493,2]
[421476126,1777740659000,-500.0,0.00032493,2]
[421476124,1777740659000,-500.0,0.00032493,2]
[421476125,1777740659000,-500.0,0.00032493,2]
[421476114,1777740659000,-2730.79,0.00032493,2]
[421476116,1777740659000,-500.0,0.00032493,2]
[421476119,1777740659000,-500.0,0.00032493,2]
[421476117,1777740659000,-509.17,0.00032493,2]
[421476136,1777740659000,-500.0,0.00032493,2]
[421476122,1777740659000,-764.49,0.00032493,2]
[421476121,1777740659000,-500.0,0.00032493,2]
[421476120,1777740659000,-324.46161745,0.00032493,2]
[421476127,1777740659000,-500.0,0.00032493,2]
[421476131,1777740659000,-566.11,0.00032493,2]
[421476129,1777740659000,-500.0,0.00032493,2]
[421476130,1777740659000,-500.0,0.00032493,2]
[421476133,1777740659000,-1494.83,0.00032493,2]
[421476132,1777740659000,-692.22,0.00032493,2]
[421476134,1777740659000,-500.0,0.00032493,2]
[421476138,1777740659000,-568.25,0.00032493,2]
[421476139,1777740659000,-455.77119802,0.00032493,2]
[421476128,1777740659000,-500.0,0.00032493,2]
[421476135,1777740659000,-500.0,0.00032493,2]
[421476118,1777740659000,-345.06326572,0.00032493,2]
[421476171,1777740659000,-553.67,0.00032493,2]
[421476112,1777740659000,-500.0,0.00032493,2]
[421476169,1777740659000,-500.0,0.00032493,2]
[421476206,1777740659000,-500.0,0.00032493,2]
[421476207,1777740659000,-500.0,0.00032493,2]
[421476213,1777740659000,-658.29,0.00032493,2]
[421476211,1777740659000,-607.34,0.00032493,2]
[421476210,1777740659000,-818.91,0.00032493,2]
[421476212,1777740659000,-500.0,0.00032493,2]
[421476208,1777740659000,-500.0,0.00032493,2]
[421476209,1777740659000,-500.0,0.00032493,2]
[421476214,1777740659000,-692.94,0.00032493,2]
[421476216,1777740659000,-500.0,0.00032493,2]
[421476226,1777740659000,-209.091798,0.00032493,7]
[421476227,1777740659000,-1905.16,0.00032493,2]
[421476228,1777740659000,-500.0,0.00032493,2]
[421476205,1777740659000,-500.0,0.00032493,2]
[421476217,1777740659000,-209.091798,0.00032493,7]
[421476218,1777740659000,-500.0,0.00032493,2]
[421476219,1777740659000,-500.0,0.00032493,2]
[421476220,1777740659000,-209.091798,0.00032493,7]
[421476221,1777740659000,-500.0,0.00032493,2]
[421476223,1777740659000,-500.0,0.00032493,2]
[421476222,1777740659000,-209.091798,0.00032493,7]
[421476224,1777740659000,-807.96,0.00032493,2]
[421476225,1777740659000,-576.69152714,0.00032493,2]
[421476230,1777740659000,-683.92,0.00032493,2]
[421476229,1777740659000,-1318.58,0.00032493,2]
[421476232,1777740659000,-500.0,0.00032493,2]
[421476233,1777740659000,-500.0,0.00032493,2]
[421476166,1777740659000,-500.0,0.00032493,2]
[421476215,1777740659000,-500.0,0.00032493,2]
[421476204,1777740659000,-500.0,0.00032493,2]
[421476231,1777740659000,-500.0,0.00032493,2]
[421476202,1777740659000,-559.65107842,0.00032493,2]
[421476203,1777740659000,-500.0,0.00032493,2]
[421476168,1777740659000,-500.0,0.00032493,2]
[421476172,1777740659000,-724.98,0.00032493,2]
[421476176,1777740659000,-547.54,0.00032493,2]
[421476170,1777740659000,-500.0,0.00032493,2]
[421476175,1777740659000,-500.0,0.00032493,2]
[421476181,1777740659000,-500.0,0.00032493,2]
[421476179,1777740659000,-500.0,0.00032493,2]
[421476182,1777740659000,-15155.74,0.00032493,2]
[421476184,1777740659000,-500.0,0.00032493,2]
[421476190,1777740659000,-2458.58,0.00032493,2]
[421476187,1777740659000,-553.3,0.00032493,2]
[421476180,1777740659000,-908.85,0.00032493,2]
[421476185,1777740659000,-500.0,0.00032493,2]
[421476174,1777740659000,-796.01,0.00032493,2]
[421476186,1777740659000,-500.0,0.00032493,2]
[421476183,1777740659000,-500.0,0.00032493,2]
[421476198,1777740659000,-500.0,0.00032493,2]
[421476197,1777740659000,-633.57201627,0.00032493,2]
[421476199,1777740659000,-500.0,0.00032493,2]
[421476195,1777740659000,-551.83503564,0.00032493,2]
[421476196,1777740659000,-592.28,0.00032493,2]
[421476201,1777740659000,-393.8318314,0.00032493,2]
[421476193,1777740659000,-500.0,0.00032493,2]
[421476194,1777740659000,-500.0,0.00032493,2]
[421476192,1777740659000,-500.0,0.00032493,2]
[421476191,1777740659000,-728.98,0.00032493,2]
[421476189,1777740659000,-500.0,0.00032493,2]
[421476188,1777740659000,-500.0,0.00032493,2]
[421476200,1777740659000,-500.0,0.00032493,2]
[421476274,1777740660000,-1529.27,0.00032493,2]
[421476273,1777740660000,-500.0,0.00032493,2]
[421476272,1777740660000,-500.0,0.00032493,2]
[421476271,1777740660000,-500.0,0.00032493,2]
[421476267,1777740660000,-500.0,0.00032493,2]
[421476278,1777740660000,-500.0,0.00032493,2]
[421476270,1777740660000,-724.38,0.00032493,2]
[421476268,1777740660000,-534.99,0.00032493,2]
[421476265,1777740660000,-719.76,0.00032493,2]
[421476277,1777740660000,-500.0,0.00032493,2]
[421476269,1777740660000,-500.0,0.00032493,2]
[421476263,1777740660000,-500.0,0.00032493,2]
[421476285,1777740660000,-151.0,0.00032493,7]
[421476276,1777740660000,-2332.95,0.00032493,2]
[421476280,1777740660000,-637.14,0.00032493,2]
[421476279,1777740660000,-346.911513,0.00032493,7]
[421476281,1777740660000,-586.15863356,0.00032493,2]
[421476282,1777740660000,-346.911513,0.00032493,7]
[421476283,1777740660000,-170.310563,0.00032493,7]
[421476286,1777740660000,-568.51,0.00032493,2]
[421476287,1777740660000,-506.66,0.00032493,2]
[421476284,1777740660000,-346.911513,0.00032493,7]
[421476288,1777740660000,-500.0,0.00032493,2]
[421476290,1777740660000,-500.0,0.00032493,2]
[421476291,1777740660000,-2505.38,0.000325,7]
[421476264,1777740660000,-528.31384534,0.00032493,2]
[421476275,1777740660000,-346.911513,0.00032493,7]
[421476262,1777740660000,-656.62,0.00032493,2]
[421476251,1777740660000,-500.0,0.00032493,2]
[421476260,1777740660000,-719.82,0.00032493,2]
[421476293,1777740660000,-165.17,0.00032527,2]
[421476241,1777740660000,-500.0,0.00032493,2]
[421476240,1777740660000,-718.35,0.00032493,2]
[421476242,1777740660000,-570.38135089,0.00032493,2]
[421476234,1777740660000,-500.0,0.00032493,2]
[421476239,1777740660000,-500.0,0.00032493,2]
[421476235,1777740660000,-500.0,0.00032493,2]
[421476236,1777740660000,-500.0,0.00032493,2]
[421476237,1777740660000,-618.45743799,0.00032493,2]
[421476238,1777740660000,-532.12,0.00032493,2]
[421476244,1777740660000,-500.0,0.00032493,2]
[421476243,1777740660000,-634.41,0.00032493,2]
[421476247,1777740660000,-500.0,0.00032493,2]
[421476245,1777740660000,-500.0,0.00032493,2]
[421476246,1777740660000,-500.0,0.00032493,2]
[421476250,1777740660000,-500.0,0.00032493,2]
[421476248,1777740660000,-500.0,0.00032493,2]
[421476252,1777740660000,-500.0,0.00032493,2]
[421476253,1777740660000,-579.77,0.00032493,2]
[421476249,1777740660000,-500.0,0.00032493,2]
[421476254,1777740660000,-2406.39,0.00032493,2]
[421476255,1777740660000,-922.85,0.00032493,2]
[421476257,1777740660000,-803.51,0.00032493,2]
[421476256,1777740660000,-500.0,0.00032493,2]
[421476259,1777740660000,-500.0,0.00032493,2]
[421476258,1777740660000,-500.0,0.00032493,2]
[421476261,1777740660000,-500.0,0.00032493,2]
[421476266,1777740660000,-500.0,0.00032493,2]
[421476289,1777740660000,-500.0,0.00032493,2]
[421476298,1777740660000,-500.0,0.00032547,2]
[421476297,1777740660000,-167.48161457,0.00032547,2]
[421476327,1777740660000,-500.0,0.00032547,2]
[421476328,1777740660000,-357.99354804,0.00032547,2]
[421476333,1777740660000,-500.0,0.00032547,2]
[421476334,1777740660000,-1152.06,0.00032547,2]
[421476329,1777740660000,-500.0,0.00032547,2]
[421476331,1777740660000,-272.77897763,0.00032547,2]